Cogmind - Beta 15 @@@ ROGUE MODE // 2025.07.16 @ 17:52:01 Player: SpaceExplorer337 Result: Destroyed by G-47 Trooper with Particle Gun Performance ------------- Evolutions (2) 1000 Regions Visited (3) 600 Robots Destroyed (16) 80 Value Destroyed (345) 345 Prototype IDs (0) 0 Alien Tech Used (0) 0 Bonus (0) 0 TOTAL SCORE: 2025 Bonus ------- None Cogmind --------- Core Integrity 0/550 Matter 279/300 Energy 100/100 System Corruption 0% Temperature Cool (9) Movement Core (350) Ox6 Location -8/Materials Parts ------- > --- POWER (1) -------- (None) > --- PROPULSION (4) --- (None) > --- UTILITY (4) ------ Large Storage Unit Hacking Suite > --- WEAPON (2) ------- (None) > --- INVENTORY (15) --- Improved Ion Engine Heat Sink Sensor Array Recoil Stabilizer Shock Bomb Launcher Peak State ------------ > --- POWER ------------ Light Ion Engine > --- PROPULSION ------- Airjet Flight Unit Flight Unit Flight Unit > --- UTILITY ---------- Large Storage Unit Improved Terrain Scanner Core Shielding Hacking Suite > --- WEAPON ----------- Medium Laser > --- INVENTORY -------- Aluminum Leg Aluminum Leg Aluminum Leg Flight Unit Heat Sink Sensor Array Small Laser Small Laser [Rating: 16] Favorites ----------- Power Ion Engine Engine Ion Engine Propulsion Aluminum Leg Leg Aluminum Leg Hover Unit Airjet Flight Unit Flight Unit Utility Large Storage Unit Device Improved Terrain Scanner Storage Large Storage Unit Hackware Hacking Suite Protection Core Shielding Weapon Assault Rifle Energy Gun Small Laser Ballistic Gun Assault Rifle Build | -11 -10 -9 -8 ------- Run | Yrd Mat Mat Mat Slots Evolved 4 | . . 2 2 Power . | . . . . Propulsion 2 | . . 1 1 Utility 2 | . . 1 1 Weapon . | . . . . Parts Attached 24 | 7 1 11 5 Power 3 | 1 . 1 1 Engine 3 | 1 . 1 1 Core . | . . . . Reactor . | . . . . Propulsion 10 | 2 . 6 2 Treads . | . . . . Leg 3 | 2 . 1 . Wheel . | . . . . Hover 1 | . . . 1 Flight 6 | . . 5 1 Utility 5 | 2 1 2 . Device 1 | 1 . . . Storage 2 | 1 1 . . Processor . | . . . . Hackware 1 | . . 1 . Protection 1 | . . 1 . Artifact . | . . . . Weapon 6 | 2 . 2 2 Energy Gun 3 | . . 1 2 Energy Cannon . | . . . . Ballistic Gun 3 | 2 . 1 . Ballistic Cannon . | . . . . Launcher . | . . . . Special Weapon . | . . . . Impact Weapon . | . . . . Slashing Weapon . | . . . . Piercing Weapon . | . . . . Special Melee Weapon . | . . . . Unidentified Prototypes . | . . . . Parts Lost 21 | . . 6 15 Power 3 | . . 2 1 Propulsion 10 | . . 2 8 Utility 2 | . . . 2 Weapon 6 | . . 2 4 Highest Loss Streak 7 | . . 3 7 To Critical Strikes 1 | . . . 1 Average Backups 8 | 4 8 11 7 Power 1 | 1 2 1 . Propulsion 3 | 1 4 4 2 Utility 2 | . 1 3 2 Weapon 1 | 1 1 2 1 Tool/Special . | . . . . Unused Backups 9 | . 4 . 5 Power 1 | . . . 1 Propulsion 4 | . 4 . . Utility 3 | . . . 3 Weapon 1 | . . . 1 Tool/Special . | . . . . Average Slot Usage (%) 89 | . 100 99 67 Engine 10 | . 14 11 4 Leg 16 | . 28 12 9 Flight 11 | . . 20 12 Device 8 | . 14 8 2 Storage 11 | . 14 11 9 Hackware 6 | . . 10 9 Protection 3 | . . 2 8 Energy Gun 4 | . . 2 10 Ballistic Gun 16 | . 28 19 1 Peak Build Rating 16 | 9 10 14 16 Average Rating 10 | 6 9 13 11 On Entrance 7 | . 9 10 11 Naked Turns . | . . . . Heaviest Build 30 | 15 30 30 28 Greatest Support 30 | 20 20 30 30 Greatest Overweight (x) 7 | 1 1 3 7 Average Overweight (x) . | . . 1 1 Largest Inventory Capacity 15 | 8 15 15 15 Average Capacity 12 | 7 10 15 15 Most Carried 14 | 7 12 14 11 Average Carried 8 | 4 8 11 7 Final Capacity 15 | 8 15 15 15 Final Carried 12 | 7 12 10 5 Class Distribution -------------------- 59% | Mutant 40% | Scavenger-Mutant Dominant Class ---------------- Mutant | -10/Materials Scavenger-Mutant | -9/Materials Scavenger-Mutant | -8/Materials Resources | -11 -10 -9 -8 ----------- Run | Yrd Mat Mat Mat Matter Collected 645 | 300 89 140 116 Remotely . | . . . . Salvage Created 510 | 129 137 128 116 Parts 38 | 10 15 8 5 Haulers Intercepted . | . . . . Recyclers Shooed . | . . . . Parts Field Recycled . | . . . . Retrieved Matter . | . . . . Parts Self-Destructed . | . . . . Prevented . | . . . . Kills | -11 -10 -9 -8 ------- Run | Yrd Mat Mat Mat Combat Hostiles Destroyed 11 | . 4 5 2 Guns 11 | . 4 5 2 Classes Destroyed 7 | 2 4 1 . Tunneler 2 | 2 . . . Recycler 1 | 1 . . . Operator 1 | . 1 . . Watcher 1 | . 1 . . Swarmer 6 | . 3 3 . Grunt 2 | . 1 1 . Sentry 3 | . . 1 2 Best Kill Streak 3 | 2 3 3 1 Combat Bots Only 3 | . 3 3 1 Max Kills in Single Turn 1 | 1 1 1 1 Gunslinging . | . . . . Exploded . | . . . . Melee . | . . . . Uniques/NPCs Destroyed . | . . . . Combat | -11 -10 -9 -8 -------- Run | Yrd Mat Mat Mat Hostile Shots Fired 163 | . 17 57 89 Missed 46 | . 1 20 25 Hits 117 | . 16 37 64 Projectile 117 | . 16 37 64 Critical Strikes 6 | . . . 6 Damage Taken 1926 | . 140 587 1199 Core 699 | . 25 111 563 Absorbed by Shields . | . . . . Redirected to Shielding 52 | . . 3 49 Core Remaining (%) 87 | 100 90 72 . Volleys Fired 56 | 6 13 29 8 Largest 2 | 2 2 2 2 Hottest 90 | 40 40 70 90 Shots Fired 108 | 12 26 57 13 Gun 108 | 12 26 57 13 Cannon . | . . . . Launcher . | . . . . Special . | . . . . Kinetic 89 | 12 26 51 . Thermal 19 | . . 6 13 Explosive . | . . . . Electromagnetic . | . . . . Robot Hit Streak 9 | 2 3 9 5 Robot Miss Streak 10 | 2 10 9 1 Penetration Max . | . . . . Secondary Targets . | . . . . Shots Hit Robots 53 | 5 8 30 10 Core Hits 24 | 3 7 9 5 Critical Kills . | . . . . Critical Parts Destroyed . | . . . . Critical Strikes . | . . . . Melee Attacks . | . . . . Impact . | . . . . Slashing . | . . . . Piercing . | . . . . Sneak Attacks . | . . . . Combat Hostiles . | . . . . Follow-up Attacks . | . . . . Damage Inflicted 646 | 66 120 348 112 Guns 646 | 66 120 348 112 Cannons . | . . . . Explosions . | . . . . Melee . | . . . . Ramming . | . . . . Kinetic 470 | 66 120 284 . Thermal 176 | . . 64 112 Explosive . | . . . . Electromagnetic . | . . . . Impact . | . . . . Slashing . | . . . . Piercing . | . . . . Highest Corruption . | . . . . Average Corruption . | . . . . Corruption Purged . | . . . . Corruption Blocked . | . . . . Overload Shots . | . . . . Overflow Damage 128 | . . 128 . Projectiles . | . . . . Explosions 128 | . . 128 . Melee . | . . . . Knockbacks . | . . . . Impact . | . . . . Kinetic . | . . . . Secondary . | . . . . Self-Inflicted Damage 210 | . . 210 . Shots 2 | . . 2 . Rammed . | . . . . Targets Rammed . | . . . . Kicked . | . . . . Crushed . | . . . . Highest Temperature 124 | . . 124 86 Average Temperature 53 | . . 62 43 Received Heat Transfer 534 | . 18 129 387 Siege Activations . | . . . . Martial Activations . | . . . . Shielding Activations . | . . . . Robots Disrupted . | . . . . Combat Hostiles . | . . . . Robots Corrupted . | . . . . Combat Hostiles . | . . . . Parts Fried . | . . . . Impact Corruptions . | . . . . Robots Melted . | . . . . Combat Hostiles . | . . . . Parts Melted 2 | . . 1 1 Heat Transferred 459 | . . 185 274 Parts Sabotaged . | . . . . Parts Stolen . | . . . . Parts Stripped . | . . . . Power Chain Reactions . | . . . . Alert | -11 -10 -9 -8 ------- Run | Yrd Mat Mat Mat Maximum Alert Level . | . . . . Low Security (%) 100 | 100 100 100 100 Level 1 . | . . . . Level 2 . | . . . . Level 3 . | . . . . Level 4 . | . . . . Level 5 . | . . . . High Security . | . . . . Max Security . | . . . . Peak Influence 82 | 10 82 70 30 Initial 6 | . . 6 . Average 22 | . 37 31 5 Influence Increases 431 | 15 130 211 75 Destroy 0b10 Robot/C 220 | . 80 100 40 Destroy 0b10 Robot/NC 25 | 15 10 . . Destroy Leader 72 | . 22 30 20 Successful Hack 27 | . 18 9 . Disable Machine 45 | . . 45 . Destroy Structure 27 | . . 27 . Lose Combat Pursuer 15 | . . . 15 Influence Decreases 431 | 15 114 227 75 Entered New Map 10 | . . 10 . Time Decay 351 | 15 114 167 55 Lost Part 70 | . . 50 20 Squads Dispatched 4 | . 1 1 2 Investigation . | . . . . Extermination . | . . . . Reinforcement 4 | . 1 1 2 Assault . | . . . . Garrison . | . . . . Intercept . | . . . . Searches Triggered . | . . . . Construction Impeded . | . . . . Haulers Reinforced . | . . . . Active Scanning Responses . | . . . . Cargo Convoy Interrupts . | . . . . Stealth | -11 -10 -9 -8 --------- Run | Yrd Mat Mat Mat Distress Signals . | . . . . Communications Jammed . | . . . . Distress Signals . | . . . . Times Spotted 29 | . 7 13 9 Peak Tracking Total 5 | . 3 4 5 Tactical Retreats 1 | . . . 1 Traps | -11 -10 -9 -8 ------- Run | Yrd Mat Mat Mat Traps Triggered . | . . . . Indirectly . | . . . . Trap Hack Attempts . | . . . . Triggered . | . . . . Disarmed . | . . . . Reprogrammed . | . . . . Reused . | . . . . Traps Extracted . | . . . . Installed . | . . . . Triggered . | . . . . Machines | -11 -10 -9 -8 ---------- Run | Yrd Mat Mat Mat Machines Disabled 3 | . . 3 . Max in Single Turn 2 | . . 2 . Machines Repaired . | . . . . Machines Dismantled . | . . . . Machines Sabotaged . | . . . . Overloaded Fab Kills . | . . . . Hacking | -11 -10 -9 -8 --------- Run | Yrd Mat Mat Mat Machines Accessed 6 | . 3 2 1 Terminals 6 | . 3 2 1 Fabricators . | . . . . Repair Stations . | . . . . Recycling Units . | . . . . Scanalyzers . | . . . . Garrison Access . | . . . . Total Hacks 15 | . 6 6 3 Successful 10 | . 4 4 2 Failed 3 | . 1 2 . Catastrophic 2 | . 1 1 . Database Lockouts 2 | . 1 . 1 Manual . | . . . . Terminals 15 | . 6 6 3 Fabricators . | . . . . Repair Stations . | . . . . Recycling Units . | . . . . Scanalyzers . | . . . . Garrison Access . | . . . . Terminal Hacks 10 | . 4 4 2 Record 8 | . 2 4 2 Robot Analysis 1 | . 1 . . Emergency Access Points 1 | . 1 . . Fabricator Hacks . | . . . . Repair Station Hacks . | . . . . Recycling Unit Hacks . | . . . . Scanalyzer . | . . . . Garrison Access Hacks . | . . . . Unauthorized Hacks . | . . . . Terminals . | . . . . Fabricators . | . . . . Repair Stations . | . . . . Recycling Units . | . . . . Scanalyzers . | . . . . Garrison Access . | . . . . Data Cores Recovered . | . . . . Used . | . . . . Hacking Detections 5 | . 2 2 1 Full Trace Events . | . . . . Feedback Events . | . . . . Feedback Blocked . | . . . . Robot Schematics Acquired . | . . . . Robots Built . | . . . . Authchips . | . . . . Time . | . . . . Total Robot Build Rating . | . . . . Part Schematics Acquired . | . . . . Parts Built . | . . . . Authchips . | . . . . Time . | . . . . Total Part Build Rating . | . . . . Parts Repaired . | . . . . Time . | . . . . Parts Recycled . | . . . . Recycled Matter . | . . . . Retrieved Matter . | . . . . Retrieved Components . | . . . . Parts Scanalyzed . | . . . . Part Schematics Acquired . | . . . . Parts Damaged . | . . . . Bothacking | -11 -10 -9 -8 ------------ Run | Yrd Mat Mat Mat Used RIF Installer . | . . . . Robots Hacked . | . . . . Non-combat . | . . . . Combat . | . . . . Robot Hacks Applied . | . . . . Relay Couplers Released . | . . . . Fabnet Peak Effective % . | . . . . Robots Rewired . | . . . . Allies Hacked . | . . . . Hacks Repelled . | . . . . Allies | -11 -10 -9 -8 -------- Run | Yrd Mat Mat Mat Total Allies . | . . . . Largest Group . | . . . . Highest-Rated Group . | . . . . Highest-Rated Ally . | . . . . Total Orders . | . . . . Ally Attacks . | . . . . Total Damage . | . . . . Kills . | . . . . Allies Corrupted . | . . . . Allies Melted . | . . . . Intel | -11 -10 -9 -8 ------- Run | Yrd Mat Mat Mat Active Infowar (turns) 731 | 46 316 271 98 Terrain 731 | 46 316 271 98 Robot Analysis Total 1 | . 1 . . Derelict Logs Recovered . | . . . . Drone Launches . | . . . . Drone Recoveries . | . . . . Exploration | -11 -10 -9 -8 ------------- Run | Yrd Mat Mat Mat Turns Passed 1113 | 113 316 375 309 Spaces Moved 603 | 70 188 169 176 Core 28 | 17 . . 11 Treads . | . . . . Legs 401 | 53 188 72 88 Wheels . | . . . . Hover 4 | . . . 4 Flight 170 | . . 97 73 Fastest Speed 50 | 50 120 114 111 Average Speed 146 | 107 140 162 152 Slowest Speed 440 | 120 190 277 440 Overloaded Moves . | . . . . Propulsion Burnouts . | . . . . Robots Hopped . | . . . . Potential Cave-ins . | . . . . Cave-ins Triggered . | . . . . Exploration Rate (%) 16 | 4 24 22 15 Regions Visited 3 Branch Regions . Pre-discovered Areas . | . . . . Known Exits Taken . | . . . . Unknown Exits Taken 3 | 1 1 1 . Scrap Searched . | . . . . Spaces Dug . | . . . . Terrain Destroyed 27 | . . 27 . Melee . | . . . . Projectile . | . . . . AOE 27 | . . 27 . Terrain Rammed . | . . . . Walls Destroyed . | . . . . Machines Disabled . | . . . . Actions | -11 -10 -9 -8 --------- Run | Yrd Mat Mat Mat Total 731 | 96 217 213 205 Wait . | . . . . Move 600 | 69 187 168 176 Hop . | . . . . Pick Up 34 | 14 10 5 5 Fast Attach . | . . . . Attach 26 | 7 . 7 12 Detach 2 | . . . 2 Swap 7 | . 1 4 2 Drop 6 | . 6 . . Fire 56 | 6 13 29 8 Melee . | . . . . Ram . | . . . . Kick . | . . . . Crush . | . . . . Escape Stasis . | . . . . Rewire . | . . . . Trap . | . . . . Miscellaneous . | . . . . Route ------- -11/Scrapyard -10/Materials -9/Materials -8/Materials History --------- Turn | Location | Event 4 | -11/Scrapyard | Discovered new exit (range 16) 114 | -11/Scrapyard | Entered Materials 226 | -10/Materials | Central database locked down 284 | -10/Materials | Discovered new exit (range 6) 304 | -10/Materials | Build established: Mutant 430 | -10/Materials | Entered another Materials area 430 | -9/Materials | Evolved 2 slots: Propulsion x1, Utility x1 664 | -9/Materials | Lost 3 parts (1p1n1w) 774 | -9/Materials | Discovered new exit (range 15) 805 | -9/Materials | Entered another Materials area 805 | -8/Materials | Evolved 2 slots: Propulsion x1, Utility x1 827 | -8/Materials | Central database locked down 855 | -8/Materials | Build established: Scavenger-Mutant 938 | -8/Materials | Lost 4 parts (2n1u1w) 1037 | -8/Materials | Lost 3 parts (1p1n1w) 1089 | -8/Materials | Core integrity fell below 50% 1098 | -8/Materials | Core integrity fell below 20% 1113 | -8/Materials | Lost 7 parts (5n1u1w) 1114 | -8/Materials | Destroyed by G-47 Trooper with Particle Gun Last Messages --------------- 01064_ Slug penetrates U-05 Engineer. 01064_ U-05 Engineer destroyed. 01066_ Slug penetrates Wall. 01069_ K-01 Serf collects debris. 01076_ Penetrated by Slug. 01078_ K-01 Serf collects debris. 01079_ Penetrated by Slug. 01079_ Airjet destroyed. 01082_ Core Shielding destroyed. 01082_ Penetrated by Slug. 01082_ Flight Unit destroyed. 01082_ K-01 Serf collects debris. 01085_ Slug penetrates Wall. 01086_ K-01 Serf collects debris. 01088_ Penetrated by Slug. 01093_ Critical hit (Burn: +37). 01100_ Penetrated by Slug. 01109_ K-01 Serf destroyed. 01112_ Penetrated by Slug. 01112_ Critical hit (Burn: +37). Map ----- +----------------------------------------------------+ | ???????????????????# """ # ############+##### | | ?????????????#?????# """ # #???#?????# | | ?????????????????#?#| """ # #?????????# | | ?????????????????#?# """ # #??#??????# | | ???????????????????# # #???????#?# """""" | | ???????????????????########## #????????## """""" | | ????????????????????????????# #?????? # """""" | | ????????????????####????????# #??? # """""" | | ????????????????# ####### #?? """?# """""" | | ??????????????? = ! # """"?##?##### | | ??????????????? |%=% + """"????????? | | ??????????????? * # """"???#????? | | ????????????????# ####### #? """ ???????# | | ????????????????## ????????# # ?! +??????? | | ???????????????????????#????# #????######??????? | | ????????????????????????????# #????????????????? | | ?????????????????????# "????# #??????########??? | | ???????????????????? # """? # #??#??## !#??? | | ?????????????????????# """ # #??????# #??? | | ?????????????????????# + #????#?# """ #??? | | ????????????#????????#!! # #??????# """ #??? | | ??????????? ?????#!! ??# #??????# """ =#??? | | ??????????? ??###???##x ##??????? #??? | | ???????????"" ####### ##########+####?? | | ???????????Y" x g !%* #?? | | ?????????? a @ T #?? | | ?????????? !// a #?? | | ?????????? !/ ####### ###+######+####?? | | ??????????? !/ ????????####### ???# "???? | | ??????????? ??????????????#?# ?# """?? | | ???????????? ????????????"?????# ## """ # | | ?????????????????????????????????# ## # | | ?????????????????????????????????# ## # | | ?????????????????????????????????# """ ## # | | ?????????????????????????????????# """"" ######### | | ???????????????????????????????#?# """"" #???????? | | ?????????????????????????????????# """"" #???????? | | ?????????????????????????????????# ??? #???????? | | ?????????????????????????????????# ??????#???????? | | ?????????????????????????????????##??????????????? | | ?????????????????????????????????????????????????? | | ???????????????????????????????????????#?????????? | | ?????????????????????????????????????????????????? | | ?????????????????????????????????????????????????? | | ?????????????????????????????????????????????????? | | ?????????????????????????????????????????????????? | | ?????????????????????????????????????????????????? | | ?????????????????????????????????????????????????? | | ?????????????????????????????????????????????????? | | ?????????????????????????????????????????????????? | +----------------------------------------------------+ Best States ------------- Heat Dissipation 31 Energy Generation 10 Energy Capacity 250 Matter Stores 300 Matter Capacity 300 Sight Range 16 Terrain Scan Range 16 Terrain Scan Density 10 Core Shielding 20 Evasion (%) 55 Offensive Hacking 10 Item Schematics ----------------- None Robot Schematics ------------------ None Fabricated ------------ Nothing Repaired ---------- Nothing Alien Tech Used ----------------- None Achievements -------------- None Challenges ------------ None Game ------ Seed TripodContainmentShovel Manual? 0 Play Time 00:17:27 Cumulative 14.2 hours Start 2025.07.16 @ 17:36:19 End 2025.07.16 @ 17:52:01 Sessions 1 Manual Loads 0 Difficulty Rogue Special Mode None Game No. 22 Rogue 22 Adventurer 0 Explorer 0 Win Type - Total 0 Types 0/0/0/0/0/0/0/0/0/0 Lore% 14 Gallery% 16 Achievement% 16 Wizard Run 0 Options --------- Layout 1 ASCII 0 Keyboard 0 Movement Mouse Keybinds 0 Fullscreen 1 Font 24/Smallcaps Map View 50x40 Zoom Use 0% Tactical HUD 1 Map Filters NONE Filters NONE Steam 1 RUN: 364e50b9-4051-4284-a7ba-37216a5d6b5e